fUSD/lending_fUSD_20251003
["ID","MTS","AMOUNT","RATE_DAILY","PERIOD"]
[388909011,1759489846045,-1077.762617,0.000215,2]
[388909012,1759489846057,-151.0,0.000215,2]
[388909013,1759489846067,-1128.156301,0.000215,2]
[388909014,1759489846077,-151.0,0.000215,2]
[388909015,1759489846087,-151.0,0.000215,2]
[388909016,1759489846099,-151.0,0.000215,2]
[388909017,1759489846108,-151.0,0.000215,2]
[388909018,1759489846118,-151.832504,0.000215,2]
[388909019,1759489846127,-151.0,0.000215,2]
[388909020,1759489846137,-151.0,0.000215,2]
[388909021,1759489846148,-151.0,0.000215,2]
[388909022,1759489846159,-212.424288,0.000215,2]
[388909023,1759489846168,-151.0,0.000215,2]
[388909024,1759489846177,-151.0,0.000215,2]
[388909025,1759489846187,-151.112451,0.000215,2]
[388909026,1759489846200,-151.0,0.000215,2]
[388909027,1759489846209,-151.0,0.000215,2]
[388909028,1759489846220,-151.0,0.000215,2]
[388909029,1759489846229,-159.040653,0.000215,2]
[388909030,1759489846238,-366.185833,0.000215,2]
[388909031,1759489846248,-151.0,0.000215,2]
[388909032,1759489846257,-151.0,0.000215,2]
[388909033,1759489846266,-366.185833,0.000215,2]
[388909034,1759489846276,-151.0,0.000215,2]
[388909035,1759489846285,-168.097002,0.000215,2]
[388909036,1759489846295,-366.185833,0.000215,2]
[388909037,1759489846306,-151.0,0.000215,2]
[388909038,1759489846315,-168.097002,0.000215,2]
[388909039,1759489846325,-366.185833,0.000215,2]
[388909040,1759489846335,-168.097002,0.000215,2]
[388909041,1759489846344,-168.097002,0.000215,2]
[388909042,1759489846354,-249.69968,0.000215,2]
[388909043,1759489846364,-203.103108,0.000215,2]
[388909044,1759489846374,-151.0,0.000215,2]
[388909045,1759489846383,-203.103108,0.000215,2]
[388909046,1759489846393,-203.103108,0.000215,2]
[388909047,1759489846402,-151.0,0.000215,2]
[388909048,1759489846411,-203.103108,0.000215,2]
[388909049,1759489846421,-393.826501,0.000215,2]
[388909050,1759489846430,-393.826501,0.000215,2]
[388909051,1759489846440,-151.891388,0.000215,2]
[388909052,1759489846450,-393.826501,0.000215,2]
[388909053,1759489846459,-393.826501,0.000215,2]
[388909054,1759489846469,-151.0,0.000215,2]
[388909055,1759489846478,-151.0,0.000215,2]
[388909056,1759489846488,-151.0,0.000215,2]
[388909057,1759489846497,-151.0,0.000215,2]
[388909058,1759489846507,-151.0,0.000215,2]
[388909059,1759489846517,-151.0,0.000215,2]
[388909060,1759489846528,-1123.15113075,0.000215,2]
[388909061,1759489846538,-151.0,0.000215,2]
[388909062,1759489846547,-151.0,0.000215,2]
[388909063,1759489846557,-151.0,0.000215,2]
[388909064,1759489846566,-214.025341,0.000215,2]
[388909065,1759489846575,-151.0,0.000215,2]
[388909066,1759489846585,-151.0,0.000215,2]
[388909067,1759489846595,-151.0,0.000215,2]
[388909068,1759489846604,-151.0,0.000215,2]
[388909069,1759489846614,-151.0,0.000215,2]
[388909070,1759489846624,-151.0,0.000215,2]
[388909071,1759489846633,-151.0,0.000215,2]
[388909072,1759489846642,-151.0,0.000215,2]
[388909073,1759489846652,-151.0,0.000215,2]
[388909074,1759489846661,-151.0,0.000215,2]
[388909075,1759489846671,-202.683953,0.000215,2]
[388909076,1759489846680,-151.0,0.000215,2]
[388909077,1759489846690,-151.0,0.000215,2]
[388909078,1759489846700,-151.0,0.000215,2]
[388909079,1759489846709,-151.0,0.000215,2]
[388909080,1759489846719,-151.0,0.000215,2]
[388909081,1759489846729,-151.0,0.000215,2]
[388909082,1759489846738,-151.0,0.000215,2]
[388909083,1759489846747,-268.689378,0.000215,2]
[388909084,1759489846757,-151.0,0.000215,2]
[388909085,1759489846766,-268.689378,0.000215,2]
[388909086,1759489846776,-151.0,0.000215,2]
[388909087,1759489846787,-151.0,0.000215,2]
[388909088,1759489846798,-151.0,0.000215,2]
[388909089,1759489846808,-268.689378,0.000215,2]
[388909090,1759489846818,-151.0,0.000215,2]
[388909091,1759489846829,-268.689378,0.000215,2]
[388909092,1759489846839,-151.0,0.000215,2]
[388909093,1759489846851,-151.0,0.000215,2]
[388909094,1759489846863,-151.0,0.000215,2]
[388909095,1759489846873,-268.689378,0.000215,2]
[388909096,1759489846882,-268.689378,0.000215,2]
[388909097,1759489846891,-151.0,0.000215,2]
[388909098,1759489846902,-151.0,0.000215,2]
[388909099,1759489846912,-268.689378,0.000215,2]
[388909100,1759489846922,-268.689378,0.000215,2]
[388909101,1759489846934,-151.0,0.000215,2]
[388909102,1759489846944,-151.0,0.000215,2]
[388909103,1759489846955,-151.0,0.000215,2]
[388909104,1759489846965,-151.0,0.000215,2]
[388909105,1759489846974,-151.0,0.000215,2]
[388909106,1759489846984,-151.0,0.000215,2]
[388909107,1759489846995,-151.0,0.000215,2]
[388909108,1759489847004,-151.0,0.000215,2]
[388909109,1759489847014,-151.0,0.000215,2]
[388909110,1759489847025,-151.0,0.000215,2]
[388909111,1759489847036,-151.0,0.000215,2]
[388909112,1759489847045,-213.069973,0.000215,2]
[388909113,1759489847057,-151.0,0.000215,2]
[388909114,1759489847067,-151.0,0.000215,2]
[388909115,1759489847077,-151.0,0.000215,2]
[388909116,1759489847086,-151.0,0.000215,2]
[388909117,1759489847096,-151.0,0.000215,2]
[388909118,1759489847105,-252.675327,0.000215,2]
[388909119,1759489847114,-171.795838,0.000215,2]
[388909120,1759489847123,-151.0,0.000215,2]
[388909121,1759489847132,-171.795838,0.000215,2]
[388909122,1759489847150,-171.795838,0.000215,2]
[388909123,1759489847159,-171.795838,0.000215,2]
[388909124,1759489847172,-151.0,0.000215,2]
[388909125,1759489847183,-171.795838,0.000215,2]
[388909126,1759489847191,-152.744558,0.000215,2]
[388909127,1759489847199,-171.795838,0.000215,2]
[388909128,1759489847207,-151.0,0.000215,2]
[388909129,1759489847216,-151.0,0.000215,2]
[388909130,1759489847226,-171.795838,0.000215,2]
[388909131,1759489847235,-3335.631018,0.000215,2]
[388909132,1759489847244,-171.795838,0.000215,2]
[388909133,1759489847254,-3335.631018,0.000215,2]
[388909134,1759489847263,-151.0,0.000215,2]
[388909135,1759489847271,-151.0,0.000215,2]
[388909136,1759489847280,-3335.631018,0.000215,2]
[388909137,1759489847290,-3335.631018,0.000215,2]
[388909138,1759489847300,-151.0,0.000215,2]
[388909139,1759489847311,-151.0,0.000215,2]
[388909140,1759489847320,-3335.631018,0.000215,2]
[388909141,1759489847331,-3335.631018,0.000215,2]
[388909142,1759489847341,-3335.631018,0.000215,2]
[388909143,1759489847351,-3335.631018,0.000215,2]
[388909144,1759489847360,-151.0,0.000215,2]
[388909145,1759489847369,-151.0,0.000215,2]
[388909146,1759489847379,-155.35895,0.000215,2]
[388909147,1759489847388,-495.810379,0.000215,2]
[388909148,1759489847399,-495.810379,0.000215,2]
[388909149,1759489847408,-151.0,0.000215,2]
[388909150,1759489847418,-151.0,0.000215,2]
[388909151,1759489847427,-495.810379,0.000215,2]
[388909152,1759489847437,-495.810379,0.000215,2]
[388909153,1759489847446,-151.0,0.000215,2]
[388909154,1759489847456,-151.0,0.000215,2]
[388909155,1759489847466,-495.810379,0.000215,2]
[388909156,1759489847476,-495.810379,0.000215,2]
[388909157,1759489847487,-179.74,0.00021502,2]
[388909158,1759489847496,-200.0,0.0002151,2]
[388909159,1759489847505,-152.76420034,0.00021511,2]
[388909160,1759489847515,-5186.26201334,0.00021511,2]
[388909161,1759489847524,-200.0,0.00021513,2]
[388909162,1759489847535,-200.0,0.00021513,2]
[388909163,1759489847544,-200.0,0.00021513,2]
[388909164,1759489847553,-200.0,0.00021513,2]
[388909165,1759489847562,-200.0,0.00021513,2]
[388909166,1759489847571,-200.0,0.00021513,2]
[388909167,1759489847581,-200.0,0.00021513,2]
[388909168,1759489847591,-200.0,0.00021513,2]
[388909169,1759489847600,-200.0,0.00021513,2]
[388909170,1759489847610,-200.0,0.00021513,2]
[388909171,1759489847619,-200.0,0.00021513,2]
[388909172,1759489847628,-200.0,0.00021513,2]
[388909173,1759489847637,-200.0,0.00021513,2]
[388909174,1759489847645,-200.0,0.00021513,2]
[388909175,1759489847653,-200.0,0.00021513,2]
[388909176,1759489847661,-200.0,0.00021513,2]
[388909177,1759489847670,-1000.0,0.00021521,2]
[388909178,1759489847678,-1000.0,0.00021521,2]
[388909179,1759489847686,-500.0,0.00021521,2]
[388909180,1759489847694,-1000.0,0.00021521,2]
[388909181,1759489847703,-306.35706955,0.00021521,2]
[388909182,1759489847712,-1000.0,0.00021521,2]
[388909183,1759489847723,-500.84563007,0.00021521,2]
[388909184,1759489847733,-1000.0,0.00021521,2]
[388909185,1759489847742,-1000.0,0.00021521,2]
[388909186,1759489847752,-1000.0,0.00021521,2]
[388909187,1759489847762,-1000.0,0.00021521,2]
[388909188,1759489847771,-1000.0,0.00021521,2]
[388909189,1759489847781,-152.0,0.00021521,3]
[388909190,1759489847790,-865.23834566,0.00021527,2]
[388909191,1759489847800,-208687.45281959,0.00021527,2]
[388909192,1759489847809,-168.11053046,0.00021527,2]
[388909193,1759489847819,-750.450711,0.00021531,2]
[388909194,1759489847829,-1676.63824056,0.00021531,2]
[388909195,1759489847839,-750.450711,0.00021532,2]
[388909196,1759489847849,-599.7270288,0.00021536,2]
[388909197,1759489847862,-865.23834566,0.00021537,2]
[388909198,1759489847871,-247.56600156,0.00021539,2]
[388909199,1759489847881,-417.99045066,0.00021539,2]
[388909200,1759489847890,-168.11053046,0.0002154,2]
[388909201,1759489847900,-200.0,0.00021541,2]
[388909202,1759489847911,-200.0,0.00021541,2]
[388909203,1759489847924,-200.0,0.00021541,2]
[388909204,1759489847938,-200.0,0.00021541,2]
[388909205,1759489847947,-200.0,0.00021541,2]
[388909206,1759489847955,-200.0,0.00021541,2]
[388909207,1759489847964,-599.7270288,0.00021544,2]
[388909208,1759489847975,-419.74325661,0.00021546,2]
[388909209,1759489847984,-248.15559093,0.00021546,2]
[388909210,1759489847993,-500.0,0.00021548,2]
[388909211,1759489848003,-500.0,0.00021548,2]
[388909212,1759489848012,-865.23834566,0.00021549,2]
[388909213,1759489848021,-190.67575562,0.00021549,2]
[388909214,1759489848030,-599.7270288,0.00021551,2]
[388909215,1759489848038,-161.96101154,0.00021553,2]
[388909216,1759489848048,-329.06437113,0.00021553,2]
[388909217,1759489848057,-168.11053046,0.00021554,2]
[388909218,1759489848066,-168.11053046,0.00021555,2]
[388909219,1759489848075,-587.96705356,0.00021556,2]
[388909220,1759489848084,-171.70529094,0.00021561,2]
[388909221,1759489848093,-1676.63824056,0.00021561,2]
[388909222,1759489848102,-363.66164828,0.00021562,2]
[388909223,1759489848111,-190.67575562,0.00021563,2]
[388909224,1759489848120,-1209.74965265,0.00021565,2]
[388909225,1759489848129,-1209.74965265,0.0002157,2]
[388909226,1759489848138,-2609.68102279,0.00021571,2]
[388909227,1759489848147,-599.7270288,0.00021572,2]
[388909228,1759489848156,-161.96101154,0.00021578,2]
[388909229,1759489848166,-161.96101154,0.00021583,2]
[388909230,1759489848175,-171.70529094,0.00021585,2]
[388909231,1759489848185,-1409.83381405,0.00021586,2]
[388909232,1759489848195,-616.79898332,0.00021588,2]
[388909233,1759489848204,-292.44353855,0.0002159,2]
[388909234,1759489848220,-1828.76860791,0.00021592,2]
[388909235,1759489848229,-292.44353855,0.00021592,2]
[388909236,1759489848238,-2609.68102279,0.00021595,2]
[388909237,1759489848247,-161.96101154,0.00021597,2]
[388909238,1759489848256,-198.79073499,0.00021598,2]
[388909239,1759489848266,-248.15559093,0.000216,2]
[388909240,1759489848275,-1900.0,0.000216,7]
[388909241,1759489848284,-150.0,0.000216,2]
[388909242,1759489848293,-168.11053046,0.00021601,2]
[388909243,1759489848302,-1676.63824056,0.00021601,2]
[388909244,1759489848312,-1676.63824056,0.00021603,2]
[388909245,1759489848321,-198.79073499,0.00021603,2]
[388909246,1759489848330,-587.96705356,0.00021603,2]
[388909247,1759489848341,-1828.76860791,0.00021604,2]
[388909248,1759489848350,-1209.74965265,0.00021605,2]
[388909249,1759489848359,-417.99045066,0.00021605,2]
[388909250,1759489848368,-1246.95739262,0.00021606,2]
[388909251,1759489848378,-161.96101154,0.00021606,2]
[388909252,1759489848387,-198.79073499,0.00021608,2]
[388909253,1759489848396,-247.56600156,0.00021609,2]
[388909254,1759489848406,-292.44353855,0.00021609,2]
[388909255,1759489848415,-1676.63824056,0.00021609,2]
[388909256,1759489848424,-152.76420034,0.00021613,2]
[388909257,1759489848433,-5186.26201334,0.00021613,2]
[388909258,1759489848443,-1246.95739262,0.00021614,2]
[388909259,1759489848452,-506.7784241,0.00021616,2]
[388909260,1759489848462,-292.44353855,0.00021616,2]
[388909261,1759489848471,-174.55759116,0.00021616,2]
[388909262,1759489848480,-506.7784241,0.00021619,2]
[388909263,1759489848490,-198.79073499,0.00021619,2]
[388909264,1759489848499,-419.74325661,0.0002162,2]
[388909265,1759489848507,-171.70529094,0.00021621,2]
[388909266,1759489848515,-208687.45281959,0.00021622,2]
[388909267,1759489848523,-587.96705356,0.00021624,2]
[388909268,1759489848530,-506.7784241,0.00021626,2]
[388909269,1759489848537,-329.06437113,0.00021626,2]
[388909270,1759489848544,-158553.22435925,0.00021626,2]
[388909271,1759489850714,-365.19347086,0.000215,2]
[388909272,1759489850737,-130.61690814,0.000215,2]
[388909273,1759489850747,-244.326197,0.000215,2]
[388909274,1759489853097,161.08246282,0.0003,120]
[388909275,1759490106350,153.15330619,0.00027397,120]
[388909276,1759490333744,3500.0,0.00018,7]
[388909286,1759490513788,999.99,0.00030136,120]
[388909293,1759490598366,3587.358,0.00030136,120]
[388909294,1759490606928,13427.99742883,0.000166,2]
[388909295,1759490827611,1316.9232963,0.00015,2]
[388909296,1759490830881,18474.25130283,0.00015,2]
[388909297,1759490849398,600.0,0.00013881,2]
[388909298,1759490850989,600.0,0.00014114,2]
[388909299,1759490852552,600.0,0.00014347,2]
[388909300,1759490854236,600.0,0.0001458,2]
[388909301,1759490856561,600.0,0.00014812,2]
[388909302,1759490858141,600.0,0.00015045,2]
[388909303,1759490859705,600.0,0.00015278,2]
[388909304,1759490861307,600.0,0.00015511,2]
[388909305,1759490862878,600.0,0.00015743,2]
[388909307,1759490864665,600.0,0.00015976,2]
[388909308,1759490866302,600.0,0.00016209,2]
[388909309,1759490868233,600.0,0.00016442,2]
[388909319,1759490971835,200.0,0.0001592,2]
[388909334,1759491031958,-600.0,0.00016674,2]
[388909336,1759491031967,-250.0,0.00016693,2]
[388909338,1759491031978,-391.28009796,0.00016693,2]
[388909340,1759491031989,-162.32,0.00016712,2]
[388909342,1759491031999,-600.0,0.00016907,2]
[388909344,1759491032010,-600.0,0.0001714,2]
[388909346,1759491032020,-175.18925891,0.0001721,2]
[388909348,1759491032029,-665.37372664,0.00017211,2]
[388909350,1759491032039,-1200.0,0.0001731,2]
[388909352,1759491032049,-300.0,0.0001731,2]
[388909354,1759491032058,-602.81347711,0.00017311,2]
[388909357,1759491032079,-1897.18652289,0.00017311,2]
[388909359,1759491032088,-600.0,0.00017372,2]
[388909362,1759491032097,-290.55196866,0.00017605,2]
[388909367,1759491032134,-309.44803134,0.00017605,2]
[388909369,1759491032143,-297.19835547,0.00017838,2]
[388909373,1759491032171,-302.80164453,0.00017838,2]
[388909375,1759491032180,-665.37372664,0.000179,2]
[388909377,1759491032190,-550.0,0.00017999,2]
[388909379,1759491032199,-38276.94436645,0.00018,2]
[388909381,1759491032209,-199.39,0.00018061,2]
[388909383,1759491032218,-150.51,0.00018061,2]
[388909385,1759491032229,-300.84,0.00018061,2]
[388909387,1759491032239,-300.81,0.00018061,2]
[388909388,1759491032248,-2.87411214,0.00018061,2]
[388909389,1759491032259,-299.67588786,0.00018061,2]
[388909390,1759491032269,-300.69,0.00018061,2]
[388909391,1759491032279,-301.85,0.00018061,2]
[388909392,1759491032290,-300.46,0.00018061,2]
[388909393,1759491032299,-300.15,0.00018061,2]
[388909394,1759491032308,-302.92,0.00018061,2]
[388909395,1759491032318,-303.33,0.00018061,2]
[388909396,1759491032327,-301.72,0.00018061,2]
[388909397,1759491032336,-94.73091248,0.00018062,2]
[388909398,1759491032348,-206.40908752,0.00018062,2]
[388909399,1759491032357,-151.79,0.00018062,2]
[388909400,1759491032366,-300.13,0.00018062,2]
[388909401,1759491032376,-152.88,0.00018062,2]
[388909402,1759491032386,-150.94,0.00018062,2]
[388909403,1759491032395,-303.47,0.00018062,2]
[388909404,1759491032404,-122.09248915,0.00018062,2]
[388909405,1759491032424,-183.87751085,0.00018062,2]
[388909406,1759491032433,-302.64,0.00018062,2]
[388909408,1759491032442,-150.57,0.00018062,2]
[388909409,1759491032451,-302.7,0.00018062,2]
[388909410,1759491032461,-150.99,0.00018062,2]
[388909412,1759491032471,-303.3,0.00018062,2]
[388909415,1759491032482,-305.36,0.00018062,2]
[388909417,1759491032496,-151.35,0.00018062,2]
[388909419,1759491032505,-150.99,0.00018062,2]
[388909421,1759491032514,-1181.0,0.00018063,2]
[388909423,1759491032524,-600.0,0.00018071,2]
[388909425,1759491032534,-600.0,0.00018303,2]
[388909427,1759491032543,-199.4,0.00018335,2]
[388909429,1759491032552,-457.71157667,0.00018342,2]
[388909431,1759491032562,-150.0,0.00018342,2]
[388909433,1759491032571,-250.0,0.00018342,2]
[388909435,1759491032581,-470.7006454,0.00018342,2]
[388909437,1759491032590,-300.0,0.00018342,2]
[388909439,1759491032600,-305.5565728,0.00018384,2]
[388909441,1759491032609,-259.94435057,0.00018384,2]
[388909443,1759491032619,-300.0,0.00018384,2]
[388909445,1759491032628,-15409.31567069,0.000185,2]
[388909447,1759491032637,-600.0,0.00018536,2]
[388909449,1759491032647,-600.0,0.00018769,2]
[388909451,1759491032656,-317.0,0.00018901,2]
[388909453,1759491032666,-1680.0,0.00018994,2]
[388909455,1759491032675,-501.72057861,0.00019,7]
[388909457,1759491032684,-600.0,0.00019002,2]
[388909459,1759491032695,-600.0,0.00019234,2]
[388909461,1759491032704,-370.55283938,0.00019428,2]
[388909463,1759491032714,-3683.24812599,0.00019464,2]
[388909465,1759491032725,-231.28369723,0.00019464,2]
[388909467,1759491032735,-600.0,0.00019467,2]
[388909469,1759491032745,-200.0,0.00019472,2]
[388909471,1759491032754,-200.0,0.00019517,2]
[388909473,1759491032764,-5000.0,0.00019624,2]
[388909476,1759491032774,-600.0,0.000197,2]
[388909477,1759491032783,-5637.62,0.00019781,2]
[388909479,1759491032792,-1024.9,0.0001985,2]
[388909481,1759491032801,-1000.0,0.00019855,2]
[388909483,1759491032811,-1000.0,0.00019855,2]
[388909485,1759491032820,-328.53621072,0.00019855,2]
[388909487,1759491032830,-230.10775849,0.00019855,2]
[388909488,1759491032840,-397.07594768,0.00019855,2]
[388909489,1759491032850,-500.0,0.00019855,2]
[388909490,1759491032861,-486.93325835,0.00019855,2]
[388909491,1759491032888,-13.06674165,0.00019855,2]
[388909492,1759491032910,-500.0,0.00019855,2]
[388909493,1759491032933,-500.0,0.00019855,2]
[388909494,1759491032957,-500.0,0.00019855,2]
[388909495,1759491032981,-500.0,0.00019855,2]
[388909496,1759491032999,-500.0,0.00019855,2]
[388909497,1759491033022,-500.0,0.00019855,2]
[388909498,1759491033045,-500.0,0.00019855,2]
[388909499,1759491033070,-500.0,0.00019855,2]
[388909500,1759491033095,-500.0,0.00019855,2]
[388909501,1759491033122,-500.0,0.00019855,2]
[388909502,1759491033147,-500.0,0.00019855,2]
[388909503,1759491033173,-600.0,0.00019933,2]
[388909504,1759491033194,-480.24129857,0.0002,2]
[388909505,1759491033204,-3475.29339933,0.0002,14]
[388909506,1759491033213,-600.0,0.00020165,2]
[388909507,1759491033224,-480.24129857,0.000202,2]
[388909508,1759491033233,-600.0,0.00020398,2]
[388909509,1759491033243,-480.24129857,0.000204,2]
[388909510,1759491033252,-1000.0,0.00020474,2]
[388909511,1759491033262,-412.48,0.00020562,2]
[388909512,1759491033271,-480.24129857,0.000206,2]
[388909513,1759491033281,-600.0,0.00020631,2]
[388909514,1759491033290,-1000.0,0.00020671,2]
[388909515,1759491033299,-1114.47900943,0.0002071,2]
[388909516,1759491033309,-500.0,0.0002078,2]
[388909517,1759491033318,-480.24129857,0.000208,2]
[388909518,1759491033328,-9519.6485,0.000208,2]
[388909519,1759491033337,-270.39401812,0.0002081,2]
[388909520,1759491033346,-230.63872726,0.00020833,2]
[388909521,1759491033355,-1114.47900942,0.00020833,2]
[388909522,1759491033365,-250.49971746,0.00020842,2]
[388909523,1759491033374,-2351.0,0.00020842,2]
[388909524,1759491033384,-600.0,0.00020864,2]
[388909525,1759491033394,-769.56319296,0.00020901,2]
[388909526,1759491033403,-1114.47900942,0.00020956,2]
[388909527,1759491033413,-789.96833054,0.00020977,2]
[388909528,1759491033423,-1000.0,0.00020986,2]
[388909529,1759491033433,-728.171,0.0002099,2]
[388909530,1759491033443,-2669.25608304,0.00021,2]
[388909531,1759491033453,-524.71,0.00021,2]
[388909532,1759491033462,-500.0,0.00021041,2]
[388909533,1759491033472,-500.0,0.00021054,2]
[388909534,1759491033482,-1181.0,0.00021063,2]
[388909535,1759491033497,-1114.47900942,0.00021079,2]
[388909536,1759491033508,-600.0,0.00021096,2]
[388909537,1759491033517,-2000.0,0.000211,2]
[388909538,1759491033527,-179.56,0.00021175,2]
[388909539,1759491033538,-1114.47900942,0.00021202,2]
[388909540,1759491033547,-2000.0,0.0002122,2]
[388909541,1759491033557,-769.56319297,0.00021222,2]
[388909542,1759491033571,-175.62,0.00021268,2]
[388909543,1759491033580,-1090.14,0.00021282,2]
[388909544,1759491033590,-545.07,0.00021282,2]
[388909545,1759491033600,-167.81,0.00021282,2]
[388909546,1759491033610,-175.53,0.00021282,2]
[388909547,1759491033620,-412.7,0.00021282,2]
[388909548,1759491033629,-813.5,0.00021282,2]
[388909549,1759491033639,-412.7,0.00021282,2]
[388909550,1759491033649,-418.85,0.00021282,2]
[388909551,1759491033658,-412.63,0.00021282,2]
[388909552,1759491033668,-700.0,0.000213,7]
[388909553,1759491033677,-1114.47900942,0.00021325,2]
[388909554,1759491033687,-500.0,0.00021328,2]
[388909555,1759491033697,-600.0,0.00021329,2]
[388909556,1759491033706,-128971.04788793,0.00021331,2]
[388909557,1759491033715,-14087.32457483,0.00021348,2]
[388909558,1759491033726,-22629.73504638,0.00021353,2]
[388909559,1759491033735,-22629.73504638,0.00021353,2]
[388909560,1759491033744,-22629.73504638,0.00021366,2]
[388909561,1759491033753,-18285.8837712,0.00021369,2]
[388909562,1759491033765,-24441.33572471,0.00021369,2]
[388909563,1759491033775,-42727.21949591,0.0002137,2]
[388909564,1759491033784,-208.48217553,0.0002137,2]
[388909565,1759491033793,-14087.32457483,0.00021378,2]
[388909566,1759491033802,-11599.79248864,0.00021379,2]
[388909567,1759491033813,-1682.80491275,0.00021379,2]
[388909568,1759491033823,-35465.12239869,0.00021387,2]
[388909569,1759491033834,-7262.09709722,0.00021387,2]
[388909570,1759491034234,-14087.32457483,0.00021393,2]
[388909571,1759491034249,-407.54405202,0.00021397,2]
[388909572,1759491034257,-13282.59740139,0.000214,2]
[388909573,1759491034265,-1500.0,0.000214,7]
[388909574,1759491034274,-71045.73871797,0.00021401,2]
[388909575,1759491034285,-10836.54013501,0.00021401,2]
[388909578,1759491037446,-4115.0,0.00018063,2]
[388909579,1759491037456,-4115.0,0.00021063,2]
[388909580,1759491037465,-816.80758099,0.00021401,2]
[388909592,1759491039649,-46271.96145396,0.00021401,2]
[388909594,1759491039659,-2179.89770779,0.00021402,2]
[388909598,1759491039688,-3837.25142669,0.00021402,2]
[388909602,1759491039718,-764.0,0.00021402,2]
[388909606,1759491039761,-602.0,0.00021402,2]
[388909640,1759491043011,-332.908,0.00021402,2]
[388909641,1759491043022,-279.3450855,0.00021402,2]
[388909643,1759491043057,-34731.81727593,0.00021402,2]
[388909644,1759491043067,-13282.59740139,0.00021404,2]
[388909646,1759491043076,-14087.32457483,0.00021408,2]
[388909648,1759491043085,-22629.73504638,0.00021409,2]
[388909650,1759491043095,-510.09035,0.0002141,2]
[388909652,1759491043106,-407.54405202,0.00021412,2]
[388909654,1759491043116,-128971.04788793,0.00021412,2]
[388909656,1759491043126,-13282.59740139,0.00021421,2]
[388909657,1759491043136,-128971.04788793,0.00021434,2]
[388909659,1759491043145,-22629.73504638,0.00021443,2]
[388909661,1759491043155,-407.54405202,0.00021443,2]
[388909662,1759491043165,-1114.47900942,0.00021448,2]
[388909663,1759491043175,-208.48217553,0.00021452,2]
[388909664,1759491043185,-42727.21949591,0.00021453,2]
[388909665,1759491043195,-407.54405202,0.00021454,2]
[388909666,1759491043204,-407.54405202,0.00021463,2]
[388909667,1759491043214,-128971.04788793,0.00021468,2]
[388909668,1759491043223,-13282.59740139,0.00021475,2]
[388909669,1759491043235,-14087.32457483,0.00021497,2]
[388909670,1759491043244,-2300.0,0.000215,7]
[388909671,1759491043253,-510.09035,0.000215,2]
[388909672,1759491043263,-622.97470118,0.00021521,2]
[388909673,1759491043273,-208.48217553,0.00021534,2]
[388909674,1759491043284,-600.0,0.00021562,2]
[388909675,1759491043294,-1114.47900942,0.00021571,2]
[388909676,1759491043304,-3100.0,0.000216,7]
[388909677,1759491043314,-500.0,0.00021602,2]
[388909678,1759491043324,-208.48217553,0.00021616,2]
[388909679,1759491043335,-18081.8868058,0.00021621,2]
[388909680,1759491043344,-1574.9956082,0.00021621,2]
[388909681,1759491043354,-4751.4700956,0.00021621,2]
[388909682,1759491043364,-1000.0,0.00021656,2]
[388909683,1759491043374,-500.0,0.00021659,2]
[388909684,1759491043384,-485.85737556,0.00021659,2]